[Event "Late-Titled-Tuesday-Blitz-February-27-2024"]
[Site "Chess.com"]
[Date "2024.02.27"]
[Round "3"]
[White "rdarruda"]
[Black "Seochesspie"]
[Result "0-1"]
[WhiteElo "2517"]
[BlackElo "2892"]
[TimeControl "180+1"]
[EndTime "14:27:23 PST"]
[Termination "Seochesspie won on time"]

1. c4 {[%clk 0:02:19.4]} 1... Nf6 {[%clk 0:02:59.6]} 2. Nf3 {[%clk 0:02:18.5]}
2... g6 {[%clk 0:02:58.9]} 3. Nc3 {[%clk 0:02:18.5]} 3... Bg7 {[%clk 0:02:59]}
4. e4 {[%clk 0:02:19.1]} 4... c5 {[%clk 0:02:58.2]} 5. g3 {[%clk 0:02:17.9]}
5... Nc6 {[%clk 0:02:57.6]} 6. Bg2 {[%clk 0:02:18.2]} 6... d6 {[%clk 0:02:57.8]}
7. d3 {[%clk 0:02:18.7]} 7... O-O {[%clk 0:02:57.3]} 8. O-O {[%clk 0:02:18.7]}
8... a6 {[%clk 0:02:57.7]} 9. Nh4 {[%clk 0:02:17.8]} 9... Rb8 {[%clk 0:02:57.3]}
10. a4 {[%clk 0:02:16.2]} 10... Bd7 {[%clk 0:02:56.4]} 11. f4 {[%clk 0:02:15.5]}
11... Nd4 {[%clk 0:02:56.8]} 12. Be3 {[%clk 0:02:14.6]} 12... b5 {[%clk
0:02:54.6]} 13. axb5 {[%clk 0:02:13.4]} 13... axb5 {[%clk 0:02:54.8]} 14. cxb5
{[%clk 0:01:59.5]} 14... Nxb5 {[%clk 0:02:46.8]} 15. Kh1 {[%clk 0:01:53.8]}
15... Ng4 {[%clk 0:02:43.8]} 16. Bd2 {[%clk 0:01:53]} 16... Nd4 {[%clk 0:02:44]}
17. Rb1 {[%clk 0:01:50.7]} 17... Nb3 {[%clk 0:02:40.7]} 18. h3 {[%clk 0:01:47]}
18... Nxd2 {[%clk 0:02:40.5]} 19. Qxd2 {[%clk 0:01:47.2]} 19... Nf6 {[%clk
0:02:41.1]} 20. Kh2 {[%clk 0:01:36]} 20... Rb3 {[%clk 0:02:39.9]} 21. Rfc1
{[%clk 0:01:17.6]} 21... Qb8 {[%clk 0:02:38.6]} 22. Rc2 {[%clk 0:01:18.2]} 22...
Qb4 {[%clk 0:02:33]} 23. Nf3 {[%clk 0:01:17.1]} 23... Bc6 {[%clk 0:02:20.3]} 24.
e5 {[%clk 0:00:48.9]} 24... Nd5 {[%clk 0:02:11.9]} 25. Nxd5 {[%clk 0:00:46.9]}
25... Bxd5 {[%clk 0:02:12.8]} 26. Qxb4 {[%clk 0:00:46.3]} 26... Rxb4 {[%clk
0:02:12.3]} 27. exd6 {[%clk 0:00:44.4]} 27... exd6 {[%clk 0:02:12.4]} 28. Nd2
{[%clk 0:00:41.8]} 28... Ba2 {[%clk 0:02:10]} 29. Ra1 {[%clk 0:00:36.6]} 29...
Be6 {[%clk 0:02:10.4]} 30. Rb1 {[%clk 0:00:32.5]} 30... Rfb8 {[%clk 0:02:09]}
31. b3 {[%clk 0:00:28.6]} 31... Bd4 {[%clk 0:01:44.6]} 32. Nc4 {[%clk
0:00:27.9]} 32... d5 {[%clk 0:01:44.4]} 33. Nd2 {[%clk 0:00:18.5]} 33... c4
{[%clk 0:01:37.8]} 34. dxc4 {[%clk 0:00:17.8]} 34... dxc4 {[%clk 0:01:38.1]} 0-1

[Event "Late-Titled-Tuesday-Blitz-February-27-2024"]
[Site "Chess.com"]
[Date "2024.02.27"]
[Round "3"]
[White "chedimir"]
[Black "FernandoArauzAlonso"]
[Result "1-0"]
[WhiteElo "2469"]
[BlackElo "2588"]
[TimeControl "180+1"]
[EndTime "14:27:32 PST"]
[Termination "chedimir won by checkmate"]

1. e4 {[%clk 0:03:00.5]} 1... c5 {[%clk 0:02:58.7]} 2. Nf3 {[%clk 0:02:59.1]}
2... g6 {[%clk 0:02:58.8]} 3. d4 {[%clk 0:02:58.9]} 3... cxd4 {[%clk 0:02:58.3]}
4. Qxd4 {[%clk 0:02:58.9]} 4... Nf6 {[%clk 0:02:54.1]} 5. Bb5 {[%clk 0:02:58.1]}
5... Nc6 {[%clk 0:02:43.6]} 6. Bxc6 {[%clk 0:02:57.5]} 6... dxc6 {[%clk
0:02:44]} 7. Qxd8+ {[%clk 0:02:56.7]} 7... Kxd8 {[%clk 0:02:44.9]} 8. Nc3 {[%clk
0:02:56.7]} 8... Bg4 {[%clk 0:02:24.7]} 9. Ne5 {[%clk 0:02:55.6]} 9... Be6
{[%clk 0:02:24.7]} 10. Be3 {[%clk 0:02:49.3]} 10... Ng4 {[%clk 0:02:13.6]} 11.
O-O-O+ {[%clk 0:02:44.1]} 11... Kc7 {[%clk 0:02:00.5]} 12. Bf4 {[%clk
0:02:38.6]} 12... Kb6 {[%clk 0:02:01]} 13. Nxg4 {[%clk 0:02:29.2]} 13... Bxg4
{[%clk 0:02:01.9]} 14. f3 {[%clk 0:02:28.9]} 14... Be6 {[%clk 0:02:00.9]} 15.
Na4+ {[%clk 0:02:27.6]} 15... Kb5 {[%clk 0:01:52.3]} 16. b3 {[%clk 0:02:27.2]}
16... b6 {[%clk 0:01:47.3]} 17. Kb2 {[%clk 0:02:17.2]} 17... Bg7+ {[%clk
0:01:47.3]} 18. Ka3 {[%clk 0:02:16.4]} 18... Rhd8 {[%clk 0:01:36.5]} 19. c4+
{[%clk 0:02:15.2]} 19... Ka6 {[%clk 0:01:35.7]} 20. Bc7 {[%clk 0:02:14.5]} 20...
Rxd1 {[%clk 0:01:25]} 21. Rxd1 {[%clk 0:02:13.7]} 21... Kb7 {[%clk 0:01:08.3]}
22. Bd8 {[%clk 0:02:00.3]} 22... Bf6 {[%clk 0:00:59.7]} 23. f4 {[%clk
0:01:56.8]} 23... Bg4 {[%clk 0:00:46.5]} 24. Rd2 {[%clk 0:01:54.6]} 24... b5
{[%clk 0:00:18.9]} 25. Nc5+ {[%clk 0:01:50.6]} 25... Kc8 {[%clk 0:00:15.2]} 26.
e5 {[%clk 0:01:49.1]} 26... b4+ {[%clk 0:00:14.3]} 27. Kxb4 {[%clk 0:01:38.2]}
27... Bg7 {[%clk 0:00:12.7]} 28. Bxe7 {[%clk 0:01:36.8]} 28... a5+ {[%clk
0:00:12.6]} 29. Kc3 {[%clk 0:01:33.5]} 29... Ra7 {[%clk 0:00:12.6]} 30. Rd8+
{[%clk 0:01:31.3]} 30... Kc7 {[%clk 0:00:13]} 31. Rg8 {[%clk 0:01:30.6]} 31...
Bh6 {[%clk 0:00:11.9]} 32. Bd6+ {[%clk 0:01:27.1]} 32... Kb6 {[%clk 0:00:10.8]}
33. Rb8+ {[%clk 0:01:26.5]} 33... Rb7 {[%clk 0:00:08.3]} 34. Rxb7# {[%clk
0:01:25.6]} 1-0

[Event "Late-Titled-Tuesday-Blitz-February-27-2024"]
[Site "Chess.com"]
[Date "2024.02.27"]
[Round "3"]
[White "Bkmzzzzz"]
[Black "maximnovik"]
[Result "0-1"]
[WhiteElo "2404"]
[BlackElo "2597"]
[TimeControl "180+1"]
[EndTime "14:27:38 PST"]
[Termination "maximnovik won by resignation"]

1. e4 {[%clk 0:03:00.9]} 1... c6 {[%clk 0:02:59.4]} 2. d4 {[%clk 0:03:00.4]}
2... d5 {[%clk 0:02:59.9]} 3. Nc3 {[%clk 0:03:01.1]} 3... dxe4 {[%clk 0:03:00]}
4. Nxe4 {[%clk 0:03:02]} 4... Bf5 {[%clk 0:02:59.4]} 5. Nc5 {[%clk 0:03:01.8]}
5... Qb6 {[%clk 0:02:57.4]} 6. Nf3 {[%clk 0:02:49.6]} 6... e6 {[%clk 0:02:57.1]}
7. Nb3 {[%clk 0:02:41.1]} 7... Nf6 {[%clk 0:02:56.5]} 8. Bd3 {[%clk 0:02:41.1]}
8... Bg4 {[%clk 0:02:56.3]} 9. h3 {[%clk 0:02:41]} 9... Bh5 {[%clk 0:02:55.9]}
10. c3 {[%clk 0:02:39.1]} 10... Be7 {[%clk 0:02:54.7]} 11. Bf4 {[%clk
0:02:38.9]} 11... O-O {[%clk 0:02:53.1]} 12. O-O {[%clk 0:02:38.9]} 12... Nbd7
{[%clk 0:02:49.6]} 13. Rb1 {[%clk 0:02:14.7]} 13... c5 {[%clk 0:02:40]} 14. Be2
{[%clk 0:01:52.5]} 14... Rad8 {[%clk 0:02:21.8]} 15. Be3 {[%clk 0:01:33.7]}
15... Qc7 {[%clk 0:02:14.8]} 16. Qc2 {[%clk 0:00:55.7]} 16... Bg6 {[%clk
0:02:12.5]} 17. Bd3 {[%clk 0:00:55.6]} 17... Bxd3 {[%clk 0:02:12.2]} 18. Qxd3
{[%clk 0:00:55.7]} 18... c4 {[%clk 0:02:12.2]} 19. Qc2 {[%clk 0:00:49.9]} 19...
cxb3 {[%clk 0:02:12.2]} 20. axb3 {[%clk 0:00:50.8]} 20... a6 {[%clk 0:02:11.7]}
21. b4 {[%clk 0:00:51]} 21... Nb6 {[%clk 0:02:11.1]} 22. Rbd1 {[%clk 0:00:46.2]}
22... Bxb4 {[%clk 0:02:06.9]} 23. Ne5 {[%clk 0:00:43.3]} 23... Bd6 {[%clk
0:02:04.5]} 24. f4 {[%clk 0:00:42.3]} 24... Nbd5 {[%clk 0:02:01.2]} 25. Bc1
{[%clk 0:00:42.2]} 25... b5 {[%clk 0:02:00.6]} 26. Qf2 {[%clk 0:00:41.6]} 26...
Ne4 {[%clk 0:01:47.8]} 27. Qf3 {[%clk 0:00:40.9]} 27... f5 {[%clk 0:01:47.4]}
28. Kh2 {[%clk 0:00:29.4]} 28... Bxe5 {[%clk 0:01:47.3]} 29. fxe5 {[%clk
0:00:28.3]} 29... h6 {[%clk 0:01:45.1]} 30. g4 {[%clk 0:00:20.4]} 30... Ne7
{[%clk 0:01:37.6]} 31. Rg1 {[%clk 0:00:19.4]} 31... Rf7 {[%clk 0:01:36.6]} 32.
Rde1 {[%clk 0:00:19.8]} 32... Qc6 {[%clk 0:01:26.4]} 33. Qf4 {[%clk 0:00:17.3]}
33... Ng5 {[%clk 0:01:22.8]} 34. Rg3 {[%clk 0:00:14.7]} 34... fxg4 {[%clk
0:01:22.1]} 35. Qxg4 {[%clk 0:00:15.6]} 35... Nf3+ {[%clk 0:01:19.2]} 0-1

[Event "Late-Titled-Tuesday-Blitz-February-27-2024"]
[Site "Chess.com"]
[Date "2024.02.27"]
[Round "3"]
[White "PattyCastillo"]
[Black "SharathRk6"]
[Result "0-1"]
[WhiteElo "1976"]
[BlackElo "2360"]
[TimeControl "180+1"]
[EndTime "14:27:39 PST"]
[Termination "SharathRk6 won on time"]

1. d4 {[%clk 0:02:55.5]} 1... Nf6 {[%clk 0:02:58.9]} 2. Nf3 {[%clk 0:02:55.5]}
2... d5 {[%clk 0:02:58.3]} 3. e3 {[%clk 0:02:55.6]} 3... c5 {[%clk 0:02:57.6]}
4. Bd3 {[%clk 0:02:55]} 4... Nc6 {[%clk 0:02:57.8]} 5. b3 {[%clk 0:02:55.2]}
5... e6 {[%clk 0:02:58]} 6. Bb2 {[%clk 0:02:55.4]} 6... Be7 {[%clk 0:02:58.6]}
7. Nbd2 {[%clk 0:02:55.7]} 7... O-O {[%clk 0:02:58.6]} 8. O-O {[%clk 0:02:56]}
8... b6 {[%clk 0:02:59.2]} 9. a3 {[%clk 0:02:55.3]} 9... Bb7 {[%clk 0:02:59.8]}
10. Qe2 {[%clk 0:02:55.7]} 10... Rc8 {[%clk 0:03:00.2]} 11. Ne5 {[%clk 0:02:56]}
11... Qc7 {[%clk 0:02:56.3]} 12. f4 {[%clk 0:02:51.4]} 12... Rfd8 {[%clk
0:02:30.1]} 13. Rac1 {[%clk 0:02:39.6]} 13... cxd4 {[%clk 0:02:23.5]} 14. exd4
{[%clk 0:02:39.3]} 14... a6 {[%clk 0:02:10.5]} 15. c4 {[%clk 0:02:28.3]} 15...
dxc4 {[%clk 0:02:08.1]} 16. Nxc6 {[%clk 0:02:22.9]} 16... Qxc6 {[%clk
0:02:04.6]} 17. Nxc4 {[%clk 0:02:12.7]} 17... b5 {[%clk 0:01:53.1]} 18. Na5
{[%clk 0:02:08.8]} 18... Qb6 {[%clk 0:01:52.4]} 19. Nxb7 {[%clk 0:02:04.8]}
19... Qxb7 {[%clk 0:01:52.2]} 20. b4 {[%clk 0:01:52.6]} 20... Bd6 {[%clk
0:01:39.9]} 21. d5 {[%clk 0:01:45.3]} 21... Qxd5 {[%clk 0:01:28.8]} 22. Rxc8
{[%clk 0:01:34.3]} 22... Rxc8 {[%clk 0:01:27.9]} 23. Bxf6 {[%clk 0:01:32.9]}
23... gxf6 {[%clk 0:01:28.3]} 24. Qg4+ {[%clk 0:01:24.7]} 24... Kh8 {[%clk
0:01:26.9]} 25. Qh3 {[%clk 0:01:14.6]} 25... f5 {[%clk 0:01:19.4]} 26. Kh1
{[%clk 0:01:03.7]} 26... Rc3 {[%clk 0:01:13]} 27. Rd1 {[%clk 0:00:53.3]} 27...
Bxf4 {[%clk 0:01:07.7]} 28. Qh4 {[%clk 0:00:05.6]} 28... Rxd3 {[%clk 0:01:06.9]}
29. Qf6+ {[%clk 0:00:05.2]} 29... Kg8 {[%clk 0:01:06.6]} 0-1

[Event "Late-Titled-Tuesday-Blitz-February-27-2024"]
[Site "Chess.com"]
[Date "2024.02.27"]
[Round "3"]
[White "Mikhail646464"]
[Black "Yahisalem"]
[Result "0-1"]
[WhiteElo "2358"]
[BlackElo "2078"]
[TimeControl "180+1"]
[EndTime "14:27:40 PST"]
[Termination "Yahisalem won on time"]

1. Nf3 {[%clk 0:02:59]} 1... d6 {[%clk 0:02:59.7]} 2. g3 {[%clk 0:02:59.6]} 2...
Nf6 {[%clk 0:02:59.9]} 3. d4 {[%clk 0:02:59.6]} 3... g6 {[%clk 0:03:00.1]} 4.
Bg2 {[%clk 0:02:59.8]} 4... Bg7 {[%clk 0:03:00.8]} 5. c4 {[%clk 0:02:59.9]} 5...
O-O {[%clk 0:03:00.5]} 6. O-O {[%clk 0:03:00.1]} 6... Nc6 {[%clk 0:03:00.1]} 7.
Nc3 {[%clk 0:02:50.4]} 7... Bg4 {[%clk 0:02:59.2]} 8. b3 {[%clk 0:02:46.9]} 8...
Rb8 {[%clk 0:02:57.4]} 9. Bb2 {[%clk 0:02:46.9]} 9... e5 {[%clk 0:02:50.6]} 10.
dxe5 {[%clk 0:02:37.7]} 10... dxe5 {[%clk 0:02:44.5]} 11. Qxd8 {[%clk
0:02:35.3]} 11... Rfxd8 {[%clk 0:02:44.8]} 12. h3 {[%clk 0:02:34.2]} 12... Bxf3
{[%clk 0:02:37.1]} 13. Bxf3 {[%clk 0:02:32.9]} 13... e4 {[%clk 0:02:37.1]} 14.
Bg2 {[%clk 0:02:31.2]} 14... Re8 {[%clk 0:02:32.3]} 15. Rfd1 {[%clk 0:02:29.8]}
15... e3 {[%clk 0:02:29]} 16. f4 {[%clk 0:02:24]} 16... Nh5 {[%clk 0:02:27.2]}
17. Kh2 {[%clk 0:02:21.9]} 17... Nd4 {[%clk 0:02:24.1]} 18. Nd5 {[%clk
0:02:14.8]} 18... Nxe2 {[%clk 0:02:13.8]} 19. Bxg7 {[%clk 0:02:12.7]} 19... Kxg7
{[%clk 0:02:13.4]} 20. Nxc7 {[%clk 0:02:10.6]} 20... Re7 {[%clk 0:02:05.2]} 21.
Nd5 {[%clk 0:02:09.7]} 21... Ree8 {[%clk 0:02:05.2]} 22. g4 {[%clk 0:02:06.8]}
22... Nhxf4 {[%clk 0:02:04.5]} 23. Bf3 {[%clk 0:01:59.2]} 23... Nxd5 {[%clk
0:01:59.4]} 24. cxd5 {[%clk 0:01:57.9]} 24... Nf4 {[%clk 0:01:53.6]} 25. Kg3
{[%clk 0:01:53.2]} 25... g5 {[%clk 0:01:53.1]} 26. d6 {[%clk 0:01:42.9]} 26...
e2 {[%clk 0:01:51.4]} 27. Re1 {[%clk 0:01:42.1]} 27... Rbd8 {[%clk 0:01:50.8]}
28. Rac1 {[%clk 0:01:31.4]} 28... Nd3 {[%clk 0:01:47.8]} 29. Rb1 {[%clk
0:01:22.9]} 29... Nxe1 {[%clk 0:01:47.3]} 30. Rxe1 {[%clk 0:01:21.1]} 30... Rxd6
{[%clk 0:01:47.1]} 31. Bxe2 {[%clk 0:01:16.2]} 31... Rde6 {[%clk 0:01:46.6]} 32.
Kf2 {[%clk 0:01:15.9]} 32... Rf6+ {[%clk 0:01:45.4]} 33. Kg2 {[%clk 0:01:14.4]}
33... a5 {[%clk 0:01:38.8]} 34. a4 {[%clk 0:00:49.8]} 34... Rf4 {[%clk
0:01:35.5]} 35. Kg3 {[%clk 0:00:46.7]} 35... Re3+ {[%clk 0:01:33.9]} 36. Kg2
{[%clk 0:00:46.7]} 36... Kf6 {[%clk 0:01:30.8]} 0-1

[Event "Late-Titled-Tuesday-Blitz-February-27-2024"]
[Site "Chess.com"]
[Date "2024.02.27"]
[Round "3"]
[White "db-banana"]
[Black "IlanSchnaider"]
[Result "0-1"]
[WhiteElo "2484"]
[BlackElo "2720"]
[TimeControl "180+1"]
[EndTime "14:27:42 PST"]
[Termination "IlanSchnaider won by resignation"]

1. e4 {[%clk 0:03:00.9]} 1... c5 {[%clk 0:02:57.2]} 2. Nf3 {[%clk 0:03:00.6]}
2... d6 {[%clk 0:02:56.1]} 3. d3 {[%clk 0:03:00.8]} 3... g6 {[%clk 0:02:54.6]}
4. g3 {[%clk 0:03:00.5]} 4... Bg7 {[%clk 0:02:54.6]} 5. Bg2 {[%clk 0:03:00.8]}
5... Nc6 {[%clk 0:02:55.1]} 6. O-O {[%clk 0:03:01.1]} 6... e6 {[%clk 0:02:55.4]}
7. c3 {[%clk 0:03:01.6]} 7... Nge7 {[%clk 0:02:55.7]} 8. d4 {[%clk 0:03:01.2]}
8... cxd4 {[%clk 0:02:55.2]} 9. cxd4 {[%clk 0:03:02.1]} 9... O-O {[%clk
0:02:55.4]} 10. Nc3 {[%clk 0:03:02]} 10... Qb6 {[%clk 0:02:49.9]} 11. d5 {[%clk
0:02:48]} 11... Ne5 {[%clk 0:02:43.7]} 12. Rb1 {[%clk 0:02:18.3]} 12... Nxf3+
{[%clk 0:02:23.4]} 13. Bxf3 {[%clk 0:01:59.7]} 13... exd5 {[%clk 0:02:20.6]} 14.
Nxd5 {[%clk 0:01:52.7]} 14... Nxd5 {[%clk 0:02:17.6]} 15. Qxd5 {[%clk
0:01:51.7]} 15... Be6 {[%clk 0:02:17.8]} 16. Qd3 {[%clk 0:01:18.8]} 16... Bxa2
{[%clk 0:02:04.4]} 17. Ra1 {[%clk 0:01:18.8]} 17... Be6 {[%clk 0:02:03.6]} 18.
Be3 {[%clk 0:01:14.6]} 18... Qxb2 {[%clk 0:02:01.5]} 19. Rab1 {[%clk 0:01:09]}
19... Qf6 {[%clk 0:01:59.7]} 20. Bf4 {[%clk 0:00:52.8]} 20... Rfd8 {[%clk
0:01:52]} 21. Bg2 {[%clk 0:00:47.7]} 21... Qe7 {[%clk 0:01:48.7]} 22. Qb5 {[%clk
0:00:30.6]} 22... b6 {[%clk 0:01:43.9]} 23. Rfd1 {[%clk 0:00:27.3]} 23... Rac8
{[%clk 0:01:42.5]} 24. Bg5 {[%clk 0:00:20.4]} 24... Bf6 {[%clk 0:01:32]} 25.
Bxf6 {[%clk 0:00:19.3]} 25... Qxf6 {[%clk 0:01:32.9]} 26. Qa4 {[%clk 0:00:16.2]}
26... Rc7 {[%clk 0:01:26.2]} 27. Rd2 {[%clk 0:00:08.6]} 27... Rdc8 {[%clk
0:01:22.8]} 28. Rbd1 {[%clk 0:00:07.8]} 28... Qc3 {[%clk 0:01:07.6]} 29. h4
{[%clk 0:00:07.6]} 29... Bb3 {[%clk 0:01:07.2]} 30. Qa1 {[%clk 0:00:05.2]} 30...
Bxd1 {[%clk 0:01:06.5]} 0-1

[Event "Late-Titled-Tuesday-Blitz-February-27-2024"]
[Site "Chess.com"]
[Date "2024.02.27"]
[Round "3"]
[White "ckgchess"]
[Black "Rawnsdale"]
[Result "1-0"]
[WhiteElo "2872"]
[BlackElo "2513"]
[TimeControl "180+1"]
[EndTime "14:27:44 PST"]
[Termination "ckgchess won by resignation"]

1. e4 {[%clk 0:03:00.9]} 1... c6 {[%clk 0:02:59.8]} 2. d4 {[%clk 0:02:59.8]}
2... d5 {[%clk 0:02:59.9]} 3. e5 {[%clk 0:03:00.4]} 3... c5 {[%clk 0:03:00.2]}
4. dxc5 {[%clk 0:02:58]} 4... e6 {[%clk 0:03:00.2]} 5. Be3 {[%clk 0:02:57.9]}
5... Nh6 {[%clk 0:02:55.1]} 6. Bxh6 {[%clk 0:02:44.9]} 6... gxh6 {[%clk
0:02:54.8]} 7. Nd2 {[%clk 0:02:28.2]} 7... Bxc5 {[%clk 0:02:53]} 8. Nb3 {[%clk
0:02:28.4]} 8... Bb6 {[%clk 0:02:47.6]} 9. Nf3 {[%clk 0:02:20.6]} 9... Nc6
{[%clk 0:02:42.2]} 10. Bd3 {[%clk 0:02:18.2]} 10... f6 {[%clk 0:02:40.3]} 11.
Qe2 {[%clk 0:02:12]} 11... fxe5 {[%clk 0:02:27.5]} 12. Nxe5 {[%clk 0:02:11.4]}
12... Nxe5 {[%clk 0:02:25.4]} 13. Qxe5 {[%clk 0:02:11.2]} 13... O-O {[%clk
0:02:25.5]} 14. O-O {[%clk 0:01:32.2]} 14... Qf6 {[%clk 0:02:23.7]} 15. Qxf6
{[%clk 0:01:18]} 15... Rxf6 {[%clk 0:02:24.6]} 16. Rae1 {[%clk 0:01:17.2]} 16...
Bd7 {[%clk 0:02:23.3]} 17. g3 {[%clk 0:01:09.5]} 17... Raf8 {[%clk 0:02:23]} 18.
Re2 {[%clk 0:01:09.9]} 18... h5 {[%clk 0:02:16.7]} 19. Kg2 {[%clk 0:01:07.6]}
19... h4 {[%clk 0:02:16.4]} 20. f4 {[%clk 0:01:06.9]} 20... h3+ {[%clk
0:02:11.1]} 21. Kh1 {[%clk 0:00:56.8]} 21... h5 {[%clk 0:02:07.8]} 22. c3 {[%clk
0:00:53.9]} 22... h4 {[%clk 0:02:06.5]} 23. Nd2 {[%clk 0:00:46.5]} 23... Be8
{[%clk 0:01:39.6]} 24. Nf3 {[%clk 0:00:37.3]} 24... Bh5 {[%clk 0:01:38.9]} 25.
Re5 {[%clk 0:00:38]} 25... Bxf3+ {[%clk 0:01:35.4]} 26. Rxf3 {[%clk 0:00:38.9]}
26... Bc7 {[%clk 0:01:23.4]} 27. Rg5+ {[%clk 0:00:37.2]} 27... Kf7 {[%clk
0:01:23.3]} 28. Rh5 {[%clk 0:00:37.4]} 28... hxg3 {[%clk 0:01:21.6]} 29. Rh7+
{[%clk 0:00:31.5]} 29... Ke8 {[%clk 0:01:17.6]} 30. Rxc7 {[%clk 0:00:32.4]}
30... g2+ {[%clk 0:01:14.1]} 31. Kg1 {[%clk 0:00:32.3]} 31... Rxf4 {[%clk
0:01:13.2]} 32. Rc8+ {[%clk 0:00:23.5]} 32... Ke7 {[%clk 0:01:08.3]} 33. Rxf8
{[%clk 0:00:24.4]} 33... Rxf8 {[%clk 0:01:07.8]} 34. Rxf8 {[%clk 0:00:25.3]}
34... Kxf8 {[%clk 0:01:08.6]} 35. Be2 {[%clk 0:00:26.2]} 35... e5 {[%clk
0:01:00]} 36. Bg4 {[%clk 0:00:25.7]} 36... d4 {[%clk 0:01:00.5]} 37. cxd4 {[%clk
0:00:25.2]} 37... exd4 {[%clk 0:01:01.4]} 38. Bxh3 {[%clk 0:00:25.3]} 38... d3
{[%clk 0:01:02]} 39. Bxg2 {[%clk 0:00:25.3]} 39... d2 {[%clk 0:01:02.3]} 40. Bf3
{[%clk 0:00:25.7]} 1-0

[Event "Late-Titled-Tuesday-Blitz-February-27-2024"]
[Site "Chess.com"]
[Date "2024.02.27"]
[Round "3"]
[White "GiorgianBarbosa"]
[Black "Alphafischer2019"]
[Result "0-1"]
[WhiteElo "2537"]
[BlackElo "2704"]
[TimeControl "180+1"]
[EndTime "14:27:46 PST"]
[Termination "Alphafischer2019 won by checkmate"]

1. c4 {[%clk 0:03:00.8]} 1... Nf6 {[%clk 0:02:59.6]} 2. g3 {[%clk 0:03:01.7]}
2... c6 {[%clk 0:02:54.5]} 3. Bg2 {[%clk 0:03:02.6]} 3... d5 {[%clk 0:02:55]} 4.
cxd5 {[%clk 0:03:02.4]} 4... cxd5 {[%clk 0:02:55.9]} 5. Nf3 {[%clk 0:03:03]}
5... Nc6 {[%clk 0:02:56.3]} 6. O-O {[%clk 0:03:03.9]} 6... Bg4 {[%clk
0:02:54.6]} 7. d4 {[%clk 0:03:02.7]} 7... Bxf3 {[%clk 0:02:54.5]} 8. Bxf3 {[%clk
0:03:03.6]} 8... e6 {[%clk 0:02:55.1]} 9. Nc3 {[%clk 0:03:01.9]} 9... Be7 {[%clk
0:02:55.7]} 10. Bg5 {[%clk 0:02:49.3]} 10... O-O {[%clk 0:02:54.6]} 11. e3
{[%clk 0:02:49.2]} 11... Qb6 {[%clk 0:02:53.5]} 12. Qd2 {[%clk 0:02:44.4]} 12...
Na5 {[%clk 0:02:47.5]} 13. Na4 {[%clk 0:02:34.5]} 13... Qb5 {[%clk 0:02:44.5]}
14. b3 {[%clk 0:02:30]} 14... Bb4 {[%clk 0:02:31.8]} 15. Qe2 {[%clk 0:02:22.5]}
15... Qxe2 {[%clk 0:02:30.1]} 16. Bxe2 {[%clk 0:02:23.4]} 16... Ne4 {[%clk
0:02:30.3]} 17. Bf4 {[%clk 0:02:18.1]} 17... Rac8 {[%clk 0:02:27.5]} 18. a3
{[%clk 0:02:11.4]} 18... Be7 {[%clk 0:02:25.4]} 19. f3 {[%clk 0:01:18.3]} 19...
Nd2 {[%clk 0:02:20.3]} 20. Rfd1 {[%clk 0:01:09.6]} 20... Naxb3 {[%clk
0:02:19.9]} 21. Ra2 {[%clk 0:01:08.4]} 21... g5 {[%clk 0:02:09.4]} 22. Raxd2
{[%clk 0:00:54.2]} 22... Nxd2 {[%clk 0:02:07.9]} 23. Rxd2 {[%clk 0:00:55.1]}
23... gxf4 {[%clk 0:02:07.7]} 24. gxf4 {[%clk 0:00:56]} 24... Bxa3 {[%clk
0:02:06.8]} 25. Ra2 {[%clk 0:00:56.4]} 25... Be7 {[%clk 0:02:05.1]} 26. Bd3
{[%clk 0:00:56.5]} 26... Rc1+ {[%clk 0:02:04.1]} 27. Kg2 {[%clk 0:00:54.9]}
27... Rfc8 {[%clk 0:02:04.6]} 28. Kh3 {[%clk 0:00:53.5]} 28... a6 {[%clk
0:02:04]} 29. Nb6 {[%clk 0:00:52]} 29... R8c7 {[%clk 0:02:01.7]} 30. Rg2+ {[%clk
0:00:49.7]} 30... Kh8 {[%clk 0:02:00]} 31. Rb2 {[%clk 0:00:46.7]} 31... f5
{[%clk 0:01:56.6]} 32. e4 {[%clk 0:00:39.7]} 32... dxe4 {[%clk 0:01:55]} 33.
fxe4 {[%clk 0:00:40.6]} 33... R7c3 {[%clk 0:01:55]} 34. Rd2 {[%clk 0:00:40.9]}
34... Rb3 {[%clk 0:01:50.2]} 35. exf5 {[%clk 0:00:23.7]} 35... exf5 {[%clk
0:01:49.1]} 36. Nd5 {[%clk 0:00:21.3]} 36... Bd8 {[%clk 0:01:33.1]} 37. Kg2
{[%clk 0:00:18.6]} 37... Ba5 {[%clk 0:01:32.4]} 38. Re2 {[%clk 0:00:10.6]} 38...
Rxd3 {[%clk 0:01:31.3]} 39. Re7 {[%clk 0:00:07]} 39... Rc2+ {[%clk 0:01:30.9]}
40. Kf1 {[%clk 0:00:04.1]} 40... Rd1+ {[%clk 0:01:30.9]} 41. Re1 {[%clk
0:00:04.2]} 41... Rxe1# {[%clk 0:01:31.8]} 0-1

[Event "Late-Titled-Tuesday-Blitz-February-27-2024"]
[Site "Chess.com"]
[Date "2024.02.27"]
[Round "3"]
[White "Cristi_Coca"]
[Black "kripri"]
[Result "1/2-1/2"]
[WhiteElo "2388"]
[BlackElo "2348"]
[TimeControl "180+1"]
[EndTime "14:27:53 PST"]
[Termination "Game drawn by repetition"]

1. e4 {[%clk 0:03:00.9]} 1... c6 {[%clk 0:02:59.5]} 2. d4 {[%clk 0:03:00]} 2...
d5 {[%clk 0:03:00]} 3. Nc3 {[%clk 0:03:00.8]} 3... dxe4 {[%clk 0:02:59.7]} 4.
Nxe4 {[%clk 0:03:01.7]} 4... Bf5 {[%clk 0:02:59.8]} 5. Ng3 {[%clk 0:03:01.5]}
5... Bg6 {[%clk 0:03:00.4]} 6. N1e2 {[%clk 0:03:02.3]} 6... h6 {[%clk
0:02:54.2]} 7. Nf4 {[%clk 0:02:59.6]} 7... Bh7 {[%clk 0:02:53.5]} 8. Bc4 {[%clk
0:03:00.1]} 8... e6 {[%clk 0:02:53.4]} 9. O-O {[%clk 0:03:00]} 9... Nf6 {[%clk
0:02:52.8]} 10. Re1 {[%clk 0:03:00]} 10... Bd6 {[%clk 0:02:52.1]} 11. Bxe6
{[%clk 0:02:55.6]} 11... fxe6 {[%clk 0:02:53]} 12. Nxe6 {[%clk 0:02:54.7]} 12...
Qc8 {[%clk 0:02:47.1]} 13. Nxg7+ {[%clk 0:02:50.8]} 13... Kf7 {[%clk 0:02:46.6]}
14. Bxh6 {[%clk 0:02:49.9]} 14... Bg6 {[%clk 0:02:40.6]} 15. Qd2 {[%clk
0:02:04.2]} 15... Bf8 {[%clk 0:02:36.8]} 16. N7f5 {[%clk 0:01:23]} 16... Bxf5
{[%clk 0:02:34.4]} 17. Bxf8 {[%clk 0:01:12.9]} 17... Rxf8 {[%clk 0:02:34.2]} 18.
Nxf5 {[%clk 0:00:48.5]} 18... Qxf5 {[%clk 0:02:35.1]} 19. Qb4 {[%clk 0:00:48.4]}
19... Qd7 {[%clk 0:02:33.9]} 20. Re3 {[%clk 0:00:43.3]} 20... Na6 {[%clk
0:02:27.9]} 21. Qb3+ {[%clk 0:00:40.9]} 21... Nd5 {[%clk 0:02:13.9]} 22. Rae1
{[%clk 0:00:31.2]} 22... Rae8 {[%clk 0:01:07.2]} 23. Rf3+ {[%clk 0:00:29.3]}
23... Kg8 {[%clk 0:01:07.2]} 24. Rg3+ {[%clk 0:00:28.2]} 24... Kh8 {[%clk
0:01:05.7]} 25. Rh3+ {[%clk 0:00:27.8]} 25... Kg8 {[%clk 0:00:59.2]} 26. Rg3+
{[%clk 0:00:25.2]} 26... Kf7 {[%clk 0:00:34.1]} 27. Rf3+ {[%clk 0:00:18.2]}
27... Kg8 {[%clk 0:00:33.4]} 28. Rg3+ {[%clk 0:00:18.5]} 1/2-1/2